lending/lending_fUSD_20240810
["ID","MTS","AMOUNT","RATE_DAILY","PERIOD"]
[334578602,1723268588502,-536.73,0.000106,2]
[334578603,1723268588526,-150.0,0.000106,2]
[334578604,1723268588549,-150.0,0.000106,2]
[334578605,1723268588574,-150.0,0.000106,2]
[334578606,1723268588597,-530.8,0.000106,2]
[334578607,1723268588622,-488.7728,0.00010859,2]
[334578608,1723268588645,-150.0,0.00010899,2]
[334578609,1723268588670,-8229.3478,0.000109,2]
[334578610,1723268588692,-246.4166,0.000109,2]
[334578611,1723268588714,-2784.4308,0.000109,2]
[334578612,1723268588737,-2173.6263,0.000109,2]
[334578613,1723268588761,-15200.7981,0.000109,2]
[334578614,1723268588785,-312.61449336,0.000109,2]
[334578615,1723268588809,-887.89713831,0.000109,2]
[334578616,1723268588831,-4648.37,0.00010959,2]
[334578617,1723268588856,-499.99,0.00010959,2]
[334578618,1723268588880,-492.41,0.00010959,2]
[334578619,1723268588904,-2558.14582679,0.0001099,2]
[334578620,1723268588928,-1007.21980926,0.00010997,2]
[334578621,1723268588954,-1494.0018507,0.00010998,2]
[334578622,1723268588980,-745.6950071,0.00010998,2]
[334578623,1723268589003,-183.62772597,0.00010999,2]
[334578624,1723268589026,-261352.12373784,0.00011,2]
[334578625,1723268594816,815.24,0.000105,2]
[334578626,1723268594847,150.0,0.000105,2]
[334578627,1723268604326,-299130.79672135,0.00011,2]
[334578628,1723268604351,-661555.88302298,0.00011,2]
[334578629,1723268607966,500.0,0.00024657,120]
[334578630,1723268608255,500.0,0.00025342,120]
[334578631,1723268608547,500.0,0.00026027,120]
[334578632,1723268608896,500.0,0.00026712,120]
[334578635,1723268800254,195.07,8.445e-05,2]
[334578641,1723269032233,-180.64,0.0001046,2]
[334578642,1723269032248,-195.07,0.00010709,2]
[334578643,1723269032258,-191.64379024,0.000108,2]
[334578644,1723269032268,-167.65539512,0.000109,2]
[334578645,1723269032277,-30.28103516,0.000109,2]
[334578646,1723269032305,-282.3334582,0.000109,2]
[334578647,1723269032315,-1086.8753615,0.00010995,2]
[334578648,1723269032325,-2561.0816248,0.00010995,2]
[334578649,1723269032334,-167.86996821,0.00010997,2]
[334578650,1723269032344,-12937.1664856,0.00011,2]
[334578651,1723269032356,-448.12958754,0.00011,2]
[334578652,1723269032367,-7450.39419363,0.00011,2]
[334578653,1723269032379,-4182.71956465,0.00011,2]
[334578654,1723269032391,-922.53142088,0.00011,2]
[334578655,1723269032403,-419.17924755,0.00011,2]
[334578656,1723269032447,-315.7795185,0.00011,2]
[334578657,1723269032458,-696.77431602,0.00011,2]
[334578658,1723269032509,-589.99157688,0.00011,2]
[334578659,1723269032520,-302.525845,0.00011,2]
[334578692,1723269038357,-492.40723222,0.00011,2]
[334578876,1723269040310,-4369.63532909,0.000109,2]
[334578878,1723269040319,-1178.19659892,0.00011,2]
[334578880,1723269040331,-273.01302136,0.00011,2]
[334578886,1723269040377,-2839.21903234,0.00011,2]
[334578983,1723269041510,-604.46,0.00011,2]
[334579083,1723269043158,-11723.91713354,0.00011,2]
[334579104,1723269044530,-742.5,0.00011,2]
[334579121,1723269046813,-159.10333718,0.000109,2]
[334579122,1723269046822,-706.31910052,0.00011,2]
[334579123,1723269197577,500.0,0.00024657,120]
[334579124,1723269197850,500.0,0.00025342,120]
[334579125,1723269198123,500.0,0.00026027,120]
[334579126,1723269198378,500.0,0.00026712,120]
[334579127,1723269258138,175.56,8.444e-05,2]
[334579134,1723269642073,500.0,0.00027,120]
[334579136,1723269738323,190.3,8.345e-05,2]
[334579137,1723269800421,500.0,0.00024657,120]
[334579138,1723269800709,500.0,0.00025342,120]
[334579139,1723269801358,500.0,0.00026027,120]
[334579140,1723269801949,500.0,0.00026712,120]
[334579141,1723269848260,172.09061901,5e-05,2]
[334579142,1723269915229,819.29601429,5e-05,2]
[334579143,1723269922915,760.32273351,5e-05,2]
[334579144,1723269923205,411.90614455,5e-05,2]
[334579145,1723269923234,425.87503064,5e-05,2]
[334579146,1723269923313,202.25,8.219e-05,2]
[334579147,1723269926355,315.73737785,5e-05,2]
[334579148,1723269930470,155.0,5e-05,2]
[334579149,1723269933171,155.0,5e-05,2]
[334579150,1723269933903,291.58542549,5e-05,2]
[334579151,1723269938986,295.26451044,5e-05,2]
[334579152,1723269942988,249.86067151,5e-05,2]
[334579153,1723269943462,697.55963388,5e-05,2]
[334579154,1723269943919,363.99559119,5e-05,2]
[334579155,1723269944442,872.21788992,5e-05,2]
[334579156,1723269944752,155.0,5e-05,2]
[334579157,1723269946382,1223.67539123,5e-05,2]
[334579158,1723269952475,220.09762554,5e-05,2]
[334579159,1723269952632,485.60630926,5e-05,2]
[334579160,1723269953402,155.0,5e-05,2]
[334579161,1723269955560,159.05303876,5e-05,2]
[334579162,1723269960048,227.7293364,5e-05,2]
[334579163,1723269960392,760.32273351,6.061e-05,2]
[334579164,1723269960706,411.90614455,6.061e-05,2]
[334579165,1723269967966,155.0,6.061e-05,2]
[334579166,1723269968142,693.15925033,5e-05,2]
[334579167,1723269969404,973.42537251,5e-05,2]
[334579168,1723269969737,425.87503064,6.061e-05,2]
[334579169,1723269970051,180.48154322,5e-05,2]
[334579170,1723269970668,155.0,6.061e-05,2]
[334579171,1723269978924,363.99559119,6.061e-05,2]
[334579172,1723269979407,291.58542549,6.061e-05,2]
[334579173,1723269982223,155.0,5e-05,2]
[334579174,1723269984397,973.42537251,5e-05,2]
[334579175,1723269997263,155.0,6.061e-05,2]
[334579176,1723269997853,411.90614455,6.061e-05,2]
[334579177,1723269999070,159.05303876,6.061e-05,2]
[334579178,1723270002958,872.21788992,6.061e-05,2]
[334579179,1723270005980,155.0,6.061e-05,2]
[334579180,1723270008141,155.0,6.061e-05,2]
[334579181,1723270008544,227.7293364,6.061e-05,2]
[334579182,1723270010141,485.60630926,6.061e-05,2]
[334579183,1723270010911,155.0,6.061e-05,2]
[334579184,1723270016926,363.99559119,6.061e-05,2]
[334579185,1723270019760,425.87503064,6.061e-05,2]
[334579186,1723270020365,760.32273351,6.061e-05,2]
[334579187,1723270020911,973.42537251,6.061e-05,2]
[334579188,1723270021058,155.0,6.061e-05,2]
[334579189,1723270022675,201.26651,6.061e-05,2]
[334579190,1723270025658,693.15925033,6.061e-05,2]
[334579191,1723270025899,1223.67539123,6.061e-05,2]
[334579192,1723270028820,227.99076327,7.347e-05,2]
[334579193,1723270029415,291.58542549,7.347e-05,2]
[334579194,1723270037263,262.43790516,7.347e-05,2]
[334579195,1723270042943,872.21788992,7.347e-05,2]
[334579196,1723270049410,159.05303876,7.347e-05,2]
[334579197,1723270053002,155.0,7.347e-05,2]
[334579198,1723270060142,485.60630926,7.347e-05,2]
[334579199,1723270064640,693.15925033,7.347e-05,2]
[334579200,1723270067721,411.90614455,7.347e-05,2]
[334579201,1723270067972,196.32821329,7.347e-05,2]
[334579202,1723270070225,155.0,7.347e-05,2]
[334579203,1723270071905,1223.67539123,7.347e-05,2]
[334579204,1723270072096,155.0,7.347e-05,2]
[334579205,1723270073547,227.7293364,7.347e-05,2]
[334579206,1723270086927,363.99559119,8.905e-05,2]
[334579207,1723270093365,760.32273351,8.905e-05,2]
[334579208,1723270094754,425.87503064,8.905e-05,2]
[334579209,1723270096909,973.42537251,8.905e-05,2]
[334579210,1723270105415,291.58542549,8.905e-05,2]
[334579211,1723270106023,173.04,7.87e-05,2]
[334579212,1723270111078,159.05303876,8.905e-05,2]
[334579213,1723270113963,872.21788992,8.905e-05,2]
[334579216,1723270117982,155.0,8.905e-05,2]
[334579217,1723270130058,155.0,8.905e-05,2]
[334579218,1723270130149,485.60630926,8.905e-05,2]
[334579219,1723270138643,693.15925033,8.905e-05,2]
[334579220,1723270139555,227.7293364,8.905e-05,2]
[334579221,1723270139909,1223.67539123,8.905e-05,2]
[334579223,1723270163596,-2640.54818369,9.697e-05,2]
[334579224,1723270163640,-2217.34659562,9.697e-05,2]
[334579225,1723270188552,-1851.93058088,9.697e-05,2]
[334579226,1723270218734,250.0,9.648e-05,2]
[334579229,1723270232472,-1486.55463981,9.697e-05,2]
[334579230,1723270232484,-150.0,9.697e-05,2]
[334579231,1723270232500,-150.0,9.697e-05,2]
[334579232,1723270232513,-150.0,9.697e-05,2]
[334579233,1723270232525,-150.0,9.697e-05,2]
[334579234,1723270232539,-150.0,9.697e-05,2]
[334579235,1723270232550,-150.0,9.697e-05,2]
[334579236,1723270232562,-150.0,9.697e-05,2]
[334579237,1723270232575,-150.0,9.697e-05,2]
[334579238,1723270232586,-150.0,9.697e-05,2]
[334579239,1723270232596,-150.0,9.697e-05,2]
[334579240,1723270232608,-150.0,9.697e-05,2]
[334579241,1723270232619,-150.0,9.697e-05,2]
[334579242,1723270232630,-150.0,9.697e-05,2]
[334579243,1723270232641,-150.0,9.697e-05,2]
[334579244,1723270232653,-150.0,9.697e-05,2]
[334579245,1723270232665,-150.0,9.697e-05,2]
[334579246,1723270232677,-150.0,9.697e-05,2]
[334579247,1723270232689,-150.0,9.697e-05,2]
[334579248,1723270232701,-150.0,9.697e-05,2]
[334579249,1723270232714,-150.0,9.697e-05,2]
[334579250,1723270232726,-150.0,9.697e-05,2]
[334579251,1723270232738,-150.0,9.697e-05,2]
[334579252,1723270232749,-150.0,9.697e-05,2]
[334579253,1723270232759,-150.0,9.697e-05,2]
[334579254,1723270232769,-150.0,9.697e-05,2]
[334579256,1723270232780,-150.0,9.697e-05,2]
[334579257,1723270232791,-150.0,9.697e-05,2]
[334579260,1723270232803,-150.0,9.697e-05,2]
[334579262,1723270232815,-150.0,9.697e-05,2]
[334579264,1723270232827,-150.0,9.697e-05,2]
[334579266,1723270232838,-150.0,9.697e-05,2]
[334579268,1723270232849,-150.0,9.697e-05,2]
[334579270,1723270232862,-150.0,9.697e-05,2]
[334579273,1723270232873,-150.0,9.697e-05,2]
[334579275,1723270232884,-150.0,9.697e-05,2]
[334579277,1723270232896,-150.0,9.697e-05,2]
[334579280,1723270232906,-201.45315747,9.697e-05,2]
[334579283,1723270232917,-902.58901511,9.697e-05,2]
[334579286,1723270232928,-1752.56553341,9.697e-05,2]
[334579290,1723270232942,-347.40099992,9.697e-05,2]
[334579292,1723270232962,-1952.31065452,9.697e-05,2]
[334579294,1723270232973,-442.33,9.751e-05,2]
[334579296,1723270232984,-1279.33956179,9.751e-05,2]
[334579298,1723270232996,-500.0,9.816e-05,2]
[334579300,1723270233007,-522.32,9.838e-05,2]
[334579301,1723270233019,-194.75826541,9.888e-05,2]
[334579302,1723270233031,-173.49,9.946e-05,2]
[334579303,1723270233043,-963.48,9.948e-05,2]
[334579304,1723270233054,-550.0,0.0001,2]
[334579305,1723270233066,-156.67,0.00010028,2]
[334579306,1723270233077,-150.99,0.00010028,2]
[334579307,1723270233089,-946.15,0.00010078,2]
[334579308,1723270233100,-488.7728,0.00010116,2]
[334579309,1723270233111,-200.0,0.00010216,2]
[334579310,1723270233123,-723.2,0.00010229,2]
[334579311,1723270233134,-255.5,0.00010322,2]
[334579312,1723270233145,-150.0,0.00010478,2]
[334579313,1723270233156,-363.78,0.00010478,2]
[334579314,1723270233167,-300.76,0.00010478,2]
[334579315,1723270233179,-102.16131944,0.00010478,2]
[334579316,1723270233192,-47.83868056,0.00010478,2]
[334579317,1723270233204,-264.81,0.00010541,2]
[334579318,1723270233215,-276.8,0.00010568,2]
[334579319,1723270233226,-190.3,0.00010609,2]
[334579320,1723270233237,-181.17293303,0.00010678,2]
[334579321,1723270233251,-122.69706697,0.00010678,2]
[334579322,1723270233263,-155.0,0.00010794,2]
[334579323,1723270233275,-205.07879047,0.00010794,2]
[334579324,1723270233289,-168.27300749,0.00010794,2]
[334579325,1723270233304,-1082.71506189,0.0001087,2]
[334579326,1723270233322,-1335.27392991,0.0001087,2]
[334579327,1723270233336,-1047.0,0.0001087,2]
[334579328,1723270233349,-1016.00057471,0.0001087,2]
[334579329,1723270233362,-458.46643349,0.0001087,2]
[334579330,1723270233373,-46.96454027,0.0001087,2]
[334579331,1723270233387,-5085.03545973,0.0001087,2]
[334579332,1723270233398,-289.0,0.0001087,2]
[334579333,1723270233408,-1195.703,0.0001087,2]
[334579334,1723270233419,-1329.334,0.0001087,2]
[334579335,1723270233431,-150.0,0.00010899,2]
[334579336,1723270233442,-246.4166,0.000109,2]
[334579337,1723270233453,-525.6539,0.000109,2]
[334579338,1723270233464,-395.7761,0.000109,2]
[334579339,1723270233475,-781.45,0.000109,2]
[334579340,1723270233488,-150.0,0.000109,2]
[334579341,1723270233500,-167.65539512,0.000109,2]
[334579342,1723270233512,-1007.20324891,0.000109,2]
[334579343,1723270233523,-152.92137313,0.000109,2]
[334579344,1723270233536,-180.86721809,0.000109,2]
[334579345,1723270233547,-492.41,0.00010959,2]
[334579346,1723270233559,-150.0,0.00010986,2]
[334579347,1723270233571,-426.27,0.00010986,2]
[334579348,1723270233584,-150.0,0.00010986,2]
[334579349,1723270233595,-530.87,0.00010986,2]
[334579350,1723270233606,-150.0,0.00010986,2]
[334579351,1723270233617,-150.0,0.00010986,2]
[334579352,1723270233628,-150.0,0.00010986,2]
[334579353,1723270233639,-150.0,0.00010986,2]
[334579354,1723270233650,-150.0,0.00010986,2]
[334579355,1723270233662,-150.0,0.00010986,2]
[334579356,1723270233673,-150.0,0.00010986,2]
[334579357,1723270233684,-530.87,0.00010986,2]
[334579358,1723270233695,-150.0,0.00010986,2]
[334579359,1723270233706,-150.0,0.00010986,2]
[334579360,1723270233717,-150.0,0.00010986,2]
[334579361,1723270233729,-530.87,0.00010986,2]
[334579362,1723270233740,-530.87,0.00010986,2]
[334579363,1723270233752,-290.09,0.00010986,2]
[334579364,1723270233765,-1881.6480121,0.00010995,2]
[334579365,1723270233777,-499.99,0.00010997,2]
[334579366,1723270233788,-503.60990463,0.00010997,2]
[334579367,1723270233800,-490.97783,0.00010998,2]
[334579368,1723270233812,-150.51745403,0.00010999,2]
[334579369,1723270234014,-183.62772597,0.00010999,2]
[334579370,1723270234025,-1524.16309318,0.00011,2]
[334579371,1723270234040,-627.68,0.00011,2]
[334579372,1723270234051,-5619.05612154,0.00011,2]
[334579373,1723270234062,-1500.7981108,0.00011,2]
[334579374,1723270238546,-667.76472037,0.00011,2]
[334579375,1723270238558,-326.82220256,0.00011,2]
[334579376,1723270238686,-1072.50233623,0.0001087,2]
[334579377,1723270238699,-3.49766377,0.0001087,2]
[334579378,1723270238708,-7012.03974423,0.00011,2]
[334579379,1723270238720,-1969.22712928,0.00011,2]
[334579380,1723270238731,-4795.42269386,0.00011,2]
[334579381,1723270238815,-1654.53650654,0.00011,2]
[334579383,1723270238856,-660.33270864,0.00011,2]
[334579385,1723270240556,-2495.58714316,0.00011,2]
[334579386,1723270241503,-145992.73758223,0.00011,2]
[334579387,1723270241528,-58603.4587122,0.00011,2]
[334579388,1723270241544,-15916.12996309,0.00011,2]
[334579389,1723270241554,-74137.64269352,0.00011,2]
[334579390,1723270241567,-254.6980608,0.00011,2]
[334579391,1723270241586,-2693.64910135,0.00011,2]
[334579392,1723270243432,-305.20127118,0.00010998,2]
[334579393,1723270243444,-529.60407928,0.00010998,2]
[334579394,1723270243466,-13.02854204,0.00010998,2]
[334579395,1723270243476,-584.43076706,0.00011,2]
[334579396,1723270243488,-636.87818,0.00011,2]
[334579397,1723270243502,-12611.58875453,0.00011,2]
[334579398,1723270243519,-482.00237009,0.00011,2]
[334579399,1723270243531,-392.29490377,0.00011,2]
[334579400,1723270243542,-397.66172814,0.00011,2]
[334579402,1723270245201,-313.04339678,0.000109,2]
[334579403,1723270245211,-30.6494853,0.00011,2]
[334579404,1723270245222,-2396.5336603,0.00011,2]
[334579422,1723270246415,-1013.27421864,0.00011,2]
[334579423,1723270246748,-389.63124367,0.00011,2]
[334579424,1723270246772,-344.831931,0.00011,2]
[334579428,1723270301899,195.6,9.619e-05,2]
[334579429,1723270319545,718.79,8.219e-05,2]
[334579430,1723270370422,155.0,8.219e-05,2]
[334579431,1723270392287,494.78684113,0.00024657,120]
[334579432,1723270400422,155.0,8.219e-05,2]
[334579433,1723270466775,155.0,8.219e-05,2]
[334579434,1723270477481,872.21788992,8.219e-05,2]
[334579435,1723270478259,425.87503064,8.219e-05,2]
[334579436,1723270479431,973.42537251,8.219e-05,2]
[334579437,1723270481888,352.01457133,8.219e-05,2]
[334579438,1723270485239,411.90614455,8.219e-05,2]
[334579439,1723270485597,159.05303876,8.219e-05,2]
[334579440,1723270488180,693.15925033,8.219e-05,2]
[334579441,1723270490955,291.58542549,8.219e-05,2]
[334579442,1723270493730,533.79231339,8.219e-05,2]
[334579443,1723270495264,425.87503064,8.219e-05,2]
[334579444,1723270499513,155.0,8.219e-05,2]
[334579445,1723270499657,485.60630926,8.219e-05,2]
[334579446,1723270506583,155.0,8.219e-05,2]
[334579447,1723270509468,363.99559119,8.219e-05,2]
[334579448,1723270513073,227.7293364,8.219e-05,2]
[334579449,1723270519879,760.32273351,8.219e-05,2]
[334579450,1723270520418,1223.67539123,8.219e-05,2]
[334579451,1723270520957,291.58542549,8.219e-05,2]
[334579452,1723270530419,1223.67539123,8.219e-05,2]
[334579454,1723270551293,160.2127229,8.219e-05,2]
[334579455,1723270555877,373.79,9.594e-05,2]
[334579456,1723270573431,973.42537251,8.219e-05,2]
[334579457,1723270582238,411.90614455,9.594e-05,2]
[334579458,1723270582616,159.05303876,9.594e-05,2]
[334579459,1723270583179,693.15925033,9.594e-05,2]
[334579460,1723270585152,485.60630926,9.594e-05,2]
[334579461,1723270588433,973.42537251,9.594e-05,2]
[334579462,1723270588517,155.0,9.594e-05,2]
[334579463,1723270593495,872.21788992,9.594e-05,2]
[334579464,1723270597480,285.19451173,9.594e-05,2]
[334579465,1723270601579,155.0,9.594e-05,2]
[334579466,1723270606295,425.87503064,9.594e-05,2]
[334579467,1723270610986,872.21788992,9.594e-05,2]
[334579468,1723270622288,425.87503064,9.594e-05,2]
[334579469,1723270623079,227.7293364,9.594e-05,2]
[334579470,1723270625970,760.32273351,9.594e-05,2]
[334579471,1723270629201,202.64702338,9.594e-05,2]
[334579472,1723270639408,19547.1,9.604e-05,2]
[334579473,1723270640877,760.32273351,9.594e-05,2]
[334579474,1723270656420,286.3302053,9.594e-05,2]
[334579475,1723270678443,411.90614455,9.594e-05,2]
[334579476,1723270679191,693.15925033,9.594e-05,2]
[334579477,1723270681600,159.05303876,9.594e-05,2]
[334579478,1723270688700,155.0,9.594e-05,2]
[334579479,1723270694973,250.0,9.609e-05,2]
[334579480,1723270701431,973.42537251,9.594e-05,2]
[334579481,1723270703504,155.0,9.594e-05,2]
[334579482,1723270706154,485.60630926,9.594e-05,2]
[334579483,1723270712072,227.7293364,9.594e-05,2]
[334579484,1723270712579,187.86283854,9.594e-05,2]
[334579486,1723270719871,326.97808587,9.546e-05,2]
[334579487,1723270726965,200.0,9.609e-05,2]
[334579488,1723270733545,4654.57,9.61e-05,2]
[334579489,1723270736483,872.21788992,9.594e-05,2]
[334579491,1723270742303,425.87503064,9.594e-05,2]
[334579494,1723270768200,485.60630926,9.546e-05,2]
[334579495,1723270769206,318.29300212,9.546e-05,2]
[334579496,1723270769928,760.32273351,9.546e-05,2]
[334579497,1723270777391,760.32273351,9.546e-05,2]
[334579498,1723270779300,411.90614455,9.546e-05,2]
[334579501,1723270792802,159.05303876,9.546e-05,2]
[334579502,1723270794437,973.42537251,9.546e-05,2]
[334579504,1723270807624,159.05303876,9.546e-05,2]
[334579505,1723270817074,227.7293364,9.546e-05,2]
[334579506,1723270835500,913.48868057,9.546e-05,2]
[334579507,1723270837311,425.87503064,9.546e-05,2]
[334579508,1723270866977,295.53788225,9.546e-05,2]
[334579509,1723270867251,411.90614455,9.546e-05,2]
[334579510,1723270870198,485.60630926,9.546e-05,2]
[334579511,1723270873639,715.32,8.219e-05,2]
[334579512,1723270887891,760.32273351,9.546e-05,2]
[334579513,1723270894468,283.93739087,9.546e-05,2]
[334579514,1723270918093,227.7293364,9.546e-05,2]
[334579515,1723270927702,243.52,9.635e-05,2]
[334579516,1723270930830,425.87503064,9.546e-05,2]
[334579517,1723270943270,411.90614455,9.546e-05,2]
[334579518,1723270949673,159.05303876,9.546e-05,2]
[334579519,1723270959619,159.05303876,9.546e-05,2]
[334579520,1723270980899,530.83729083,9.546e-05,2]
[334579521,1723270988930,1081.28688159,9.546e-05,2]
[334579522,1723270994169,485.60630926,9.546e-05,2]
[334579523,1723271016093,227.7293364,9.546e-05,2]
[334579525,1723271017823,305.18845398,9.546e-05,2]
[334579526,1723271046092,227.7293364,9.546e-05,2]
[334579527,1723271048265,171.42414593,9.546e-05,2]
[334579528,1723271061361,186.89,9.633e-05,2]
[334579529,1723271091675,258.43134155,9.546e-05,2]
[334579532,1723271154121,227.7293364,9.546e-05,2]
[334579547,1723271247114,227.7293364,9.546e-05,2]
[334579552,1723271370166,227.7293364,9.546e-05,2]
[334579553,1723271385500,679.55,8.219e-05,2]
[334579554,1723271403214,1258.35,9.645e-05,2]
[334579555,1723271431507,-243.52,9.655e-05,2]
[334579557,1723271431517,-803.2184,9.822e-05,2]
[334579558,1723271431527,-1000.0,9.849e-05,2]
[334579560,1723271431536,-261.49,9.907e-05,2]
[334579562,1723271431546,-261.49,9.909e-05,2]
[334579563,1723271431555,-261.49,9.912e-05,2]
[334579564,1723271431564,-261.49,9.914e-05,2]
[334579565,1723271431574,-261.49,9.917e-05,2]
[334579566,1723271431583,-261.49,9.92e-05,2]
[334579567,1723271431593,-300.0,9.921e-05,2]
[334579568,1723271431603,-261.49,9.922e-05,2]
[334579569,1723271431611,-513.6,9.922e-05,2]
[334579570,1723271431621,-6985.43641038,9.922e-05,2]
[334579571,1723271431633,-397.15358962,9.922e-05,2]
[334579572,1723271431642,-499.99,9.922e-05,2]
[334579573,1723271431651,-261.49,9.925e-05,2]
[334579574,1723271431660,-261.49,9.928e-05,2]
[334579575,1723271431670,-150.0,9.93e-05,2]
[334579576,1723271431679,-360.37,9.93e-05,2]
[334579577,1723271431689,-261.49,9.93e-05,2]
[334579578,1723271431698,-261.49,9.933e-05,2]
[334579579,1723271431707,-261.49,9.935e-05,2]
[334579580,1723271431717,-247.29203962,9.938e-05,2]
[334579581,1723271431729,-14.19796038,9.938e-05,2]
[334579582,1723271431739,-1061.6,9.94e-05,2]
[334579583,1723271431748,-152.28,9.94e-05,2]
[334579584,1723271431758,-150.0,9.94e-05,2]
[334579585,1723271431768,-261.49,9.941e-05,2]
[334579586,1723271431777,-261.49,9.943e-05,2]
[334579587,1723271431787,-261.49,9.946e-05,2]
[334579588,1723271431797,-261.49,9.948e-05,2]
[334579589,1723271431807,-261.49,9.951e-05,2]
[334579590,1723271431816,-261.49,9.954e-05,2]
[334579591,1723271431826,-150.0,9.956e-05,2]
[334579592,1723271431839,-261.49,9.956e-05,2]
[334579593,1723271431848,-1000.0,0.0001,10]
[334579594,1723271431857,-413.6924188,0.0001,2]
[334579596,1723271431866,-679.55,0.00010458,2]
[334579597,1723271431877,-150.0,0.00010728,2]
[334579599,1723271431886,-150.0,0.00010729,2]
[334579601,1723271431895,-152.39834912,0.00010731,2]
[334579602,1723271431906,-132.4969046,0.00010749,2]
[334579603,1723271431923,-17.5030954,0.00010749,2]
[334579604,1723271431932,-734.66901057,0.00010758,2]
[334579606,1723271431943,-527.322701,0.00010758,2]
[334579608,1723271431954,-238.00828843,0.00010758,2]
[334579610,1723271431964,-1500.0,0.00010759,2]
[334579612,1723271431974,-150.0,0.00010774,2]
[334579614,1723271431984,-150.0,0.00010782,2]
[334579616,1723271431993,-150.0,0.00010787,2]
[334579618,1723271432003,-150.0,0.00010791,2]
[334579620,1723271432012,-361.99171157,0.000108,2]
[334579622,1723271432023,-606.47405856,0.000108,2]
[334579624,1723271432033,-422.31594144,0.000108,2]
[334579626,1723271432044,-371.75964786,0.000108,2]
[334579630,1723271432065,-935.3166107,0.000108,2]
[334579632,1723271432074,-1531.80726516,0.00010802,2]
[334579633,1723271432084,-150.0,0.00010802,2]
[334579635,1723271432093,-150.0,0.00010803,2]
[334579637,1723271432102,-150.0,0.00010805,2]
[334579639,1723271432111,-150.0,0.00010807,2]
[334579641,1723271432120,-150.0,0.0001081,2]
[334579643,1723271432130,-195.6,0.00010822,2]
[334579645,1723271432139,-1094.33976327,0.00010828,2]
[334579647,1723271432150,-405.66023673,0.00010828,2]
[334579649,1723271432159,-150.0,0.00010834,2]
[334579651,1723271432169,-150.0,0.00010838,2]
[334579653,1723271432178,-99.97008273,0.0001084,2]
[334579655,1723271432189,-143.54991727,0.0001084,2]
[334579657,1723271432199,-246.39668866,0.00010849,2]
[334579659,1723271432207,-150.0,0.00010852,2]
[334579661,1723271432216,-150.0,0.00010857,2]
[334579662,1723271432227,-150.0,0.00010861,2]
[334579663,1723271432236,-1583.0,0.00010865,2]
[334579664,1723271432245,-1281.416,0.00010865,2]
[334579665,1723271432255,-622.0,0.00010865,2]
[334579666,1723271432264,-2979.586,0.00010865,2]
[334579667,1723271432273,-881.48541333,0.00010865,2]
[334579668,1723271432284,-1042.51458667,0.00010865,2]
[334579669,1723271432294,-150.0,0.00010867,2]
[334579670,1723271432303,-150.0,0.00010872,2]
[334579671,1723271432312,-150.0,0.00010876,2]
[334579672,1723271432322,-3261.03734474,0.0001089,2]
[334579673,1723271432334,-555.249,0.0001089,2]
[334579674,1723271432345,-1248.62897292,0.0001089,2]
[334579675,1723271432355,-1.1597484,0.00010891,2]
[334579676,1723271432366,-166.64596408,0.00010891,2]
[334579677,1723271432375,-314.57969527,0.00010891,2]
[334579678,1723271432384,-150.0,0.00010892,2]
[334579679,1723271432398,-150.0,0.00010894,2]
[334579680,1723271432408,-150.0,0.00010894,2]
[334579681,1723271432417,-3351.99905358,0.00010899,2]
[334579695,1723271432561,-1870.89386894,0.000109,2]
[334579697,1723271432572,-2121.69903106,0.000109,2]
[334579699,1723271432581,-452.7967,0.000109,2]
[334579701,1723271432590,-1118.4846,0.000109,2]
[334579702,1723271432599,-329.9888,0.000109,2]